fUSD/lending_fUSD_20241207
["ID","MTS","AMOUNT","RATE_DAILY","PERIOD"]
[344550596,1733541105827,-416.180459,0.00019946,2]
[344550597,1733541105836,-2392.993461,0.00019946,2]
[344550598,1733541105846,-1001.716276,0.00019946,2]
[344550599,1733541105855,-1001.716276,0.00019946,2]
[344550600,1733541105864,-150.0,0.00019949,4]
[344550601,1733541105873,-1000.0,0.0001997,2]
[344550602,1733541105882,-500.0,0.0001997,2]
[344550603,1733541105892,-1182.0356226,0.00019986,2]
[344550604,1733541105901,-1110.4231513,0.00019986,2]
[344550605,1733541105911,-1038.8106801,0.00019986,2]
[344550606,1733541105920,-967.1982088,0.00019986,2]
[344550607,1733541105930,-895.5857375,0.00019986,2]
[344550608,1733541105939,-1233.8527707,0.00019986,2]
[344550609,1733541105948,-1159.1010082,0.00019986,2]
[344550610,1733541105957,-1084.3492457,0.00019986,2]
[344550611,1733541105967,-1009.5974833,0.00019986,2]
[344550612,1733541105976,-934.8457208,0.00019986,2]
[344550613,1733541105985,-150.0,0.00019999,2]
[344550614,1733541105994,-2074.0,0.0002,3]
[344550615,1733541106004,-7261.28962384,0.0002,2]
[344550616,1733541106013,-4500.0,0.0002,2]
[344550617,1733541106023,-296.90859096,0.0002,2]
[344550618,1733541106032,-1386.24894912,0.0002,5]
[344550619,1733541106041,-3814.68237421,0.0002,2]
[344550620,1733541106050,-349168.37148125,0.0002,4]
[344550621,1733541106060,-3950.0,0.0002,2]
[344550622,1733541106069,-24222.47329794,0.0002,2]
[344550623,1733541106078,-1234.13177976,0.0002,2]
[344550624,1733541106087,-52246.59187427,0.0002,5]
[344550625,1733541106097,-2766.32888914,0.0002,7]
[344550626,1733541106106,-469.713822,0.0002,10]
[344550627,1733541106115,-2048.26717693,0.0002,2]
[344550628,1733541106124,-1013.0,0.0002,6]
[344550629,1733541106132,-20000.0,0.0002,2]
[344550630,1733541106141,-255.9,0.0002,2]
[344550631,1733541106151,-6604.0,0.0002,5]
[344550632,1733541106160,-10000.0,0.0002,2]
[344550633,1733541106169,-321.0,0.0002,2]
[344550634,1733541106179,-30002.70551009,0.0002,2]
[344550635,1733541106188,-30000.0,0.0002,2]
[344550636,1733541106196,-30000.0,0.0002,2]
[344550637,1733541106206,-30000.0,0.0002,2]
[344550638,1733541106215,-30000.0,0.0002,2]
[344550639,1733541106224,-30000.0,0.0002,2]
[344550640,1733541106233,-30000.0,0.0002,2]
[344550641,1733541106243,-30000.0,0.0002,2]
[344550642,1733541106251,-30000.0,0.0002,2]
[344550643,1733541106261,-30000.0,0.0002,2]
[344550644,1733541106270,-30000.0,0.0002,2]
[344550645,1733541106279,-30000.0,0.0002,2]
[344550646,1733541106287,-30000.0,0.0002,2]
[344550647,1733541106297,-565.82,0.0002,10]
[344550648,1733541106306,-15649.53,0.0002,15]
[344550649,1733541106317,-2700.15642419,0.0002,10]
[344550650,1733541106327,-9654.02411315,0.0002,5]
[344550651,1733541106336,-150.0,0.0002,2]
[344550652,1733541106345,-2110.0,0.0002,2]
[344550653,1733541106354,-4420.05130039,0.0002,2]
[344550654,1733541106363,-4000.0,0.0002,7]
[344550655,1733541106372,-4000.0,0.0002,7]
[344550656,1733541106382,-4000.0,0.0002,7]
[344550657,1733541106391,-28907.42316132,0.0002,4]
[344550658,1733541106400,-828.70546411,0.0002,2]
[344550659,1733541106411,-1000.0,0.0002,20]
[344550660,1733541106420,-250.0,0.0002,20]
[344550661,1733541106430,-232.17133893,0.0002,5]
[344550662,1733541106439,-2121.71348952,0.0002,14]
[344550663,1733541106449,-1863.4413261,0.0002,2]
[344550664,1733541106458,-241.891658,0.0002,2]
[344550665,1733541106468,-241.891658,0.0002,2]
[344550666,1733541106478,-12401162.82102284,0.0002,120]
[344550667,1733541106776,-2011.66427412,0.0002,120]
[344550668,1733541106787,-3565.0,0.0002,120]
[344550669,1733541106808,-591.47,0.0002,120]
[344550670,1733541106822,-5048.5,0.0002,120]
[344550671,1733541106833,-247132.54857954,0.0002,120]
[344550672,1733541106845,-41032.64274999,0.0002,120]
[344550673,1733541106856,-829.78859668,0.0002,120]
[344550674,1733541106867,-108976.25972905,0.0002,120]
[344550675,1733541106879,-1673.11891133,0.0002,120]
[344550676,1733541106891,-3185.35883471,0.0002,120]
[344550677,1733541106902,-687.83667455,0.0002,120]
[344550678,1733541106914,-53916.17478821,0.0002,120]
[344550679,1733541107101,-1148.82,0.00011771,2]
[344550680,1733541107231,-1772.39,0.00011771,2]
[344550681,1733541107242,-2921.21,0.00012045,2]
[344550682,1733541107252,-2921.21,0.00012319,2]
[344550683,1733541107263,-2921.21,0.00012593,2]
[344550684,1733541107272,-2921.21,0.00012867,2]
[344550685,1733541107281,-2921.21,0.00013141,2]
[344550686,1733541107291,-2921.21,0.00013415,2]
[344550687,1733541107302,-2921.21,0.00013689,2]
[344550688,1733541107313,-2921.21,0.00013963,2]
[344550689,1733541107323,-2921.21,0.00014237,2]
[344550690,1733541107332,-10015.85138007,0.0002,120]
[344550715,1733542231801,-345.34660025,7.677e-05,2]
[344550716,1733542231811,-51.49179975,7.677e-05,2]
[344550717,1733542231824,-408.97033391,7.677e-05,2]
[344550719,1733542231833,-3199.588614,7.678e-05,2]
[344550721,1733542231845,-200.0,7.678e-05,2]
[344550723,1733542231856,-200.0,7.678e-05,2]
[344550725,1733542231866,-613.94951155,7.678e-05,2]
[344550727,1733542231875,-200.0,7.678e-05,2]
[344550729,1733542231884,-200.0,7.679e-05,2]
[344550731,1733542231894,-1349.82644648,7.679e-05,2]
[344550732,1733542231903,-3199.588614,7.679e-05,2]
[344550733,1733542231912,-83.41287778,7.679e-05,2]
[344550734,1733542231969,-949.94196682,7.679e-05,2]
[344550735,1733542231981,-550.05803318,7.679e-05,2]
[344550736,1733542231996,-816.27858262,7.679e-05,2]
[344550737,1733542232006,-200.0,7.68e-05,2]
[344550738,1733542232016,-200.0,7.68e-05,2]
[344550739,1733542232025,-259.00995019,7.681e-05,2]
[344550740,1733542232037,-613.94951155,7.681e-05,2]
[344550741,1733542232046,-200.0,7.681e-05,2]
[344550742,1733542232056,-200.0,7.681e-05,2]
[344550743,1733542232068,-200.0,7.682e-05,2]
[344550744,1733542232078,-200.0,7.682e-05,2]
[344550745,1733542232097,-613.94951155,7.682e-05,2]
[344550746,1733542232106,-200.0,7.682e-05,2]
[344550747,1733542232116,-200.0,7.682e-05,2]
[344550748,1733542232125,-460.46213366,7.682e-05,2]
[344550749,1733542232135,-460.46213366,7.682e-05,2]
[344550750,1733542232145,-2399.6914604,7.683e-05,2]
[344550751,1733542232154,-200.0,7.683e-05,2]
[344550752,1733542232164,-345.34660025,7.683e-05,2]
[344550753,1733542232174,-3199.588614,7.683e-05,2]
[344550754,1733542232184,-818.59934874,7.684e-05,2]
[344550755,1733542232194,-200.0,7.684e-05,2]
[344550756,1733542232204,-200.0,7.684e-05,2]
[344550757,1733542232213,-200.0,7.684e-05,2]
[344550758,1733542232222,-1799.7685953,7.684e-05,2]
[344550759,1733542232232,-1349.82644648,7.685e-05,2]
[344550760,1733542232242,-613.94951155,7.685e-05,2]
[344550761,1733542232252,-4266.11815187,7.685e-05,2]
[344550762,1733542232261,-1349.82644648,7.685e-05,2]
[344550763,1733542232271,-818.59934874,7.685e-05,2]
[344550764,1733542232280,-460.46213366,7.686e-05,2]
[344550765,1733542232290,-3199.588614,7.686e-05,2]
[344550766,1733542232299,-4266.11815187,7.687e-05,2]
[344550767,1733542232309,-818.59934874,7.687e-05,2]
[344550769,1733542232321,-818.59934874,7.687e-05,2]
[344550770,1733542232330,-200.0,7.688e-05,2]
[344550772,1733542232340,-460.46213366,7.688e-05,2]
[344550774,1733542232349,-2399.6914604,7.688e-05,2]
[344550775,1733542232359,-200.0,7.688e-05,2]
[344550776,1733542232370,-200.0,7.688e-05,2]
[344550777,1733542232379,-200.0,7.688e-05,2]
[344550778,1733542232388,-200.0,7.688e-05,2]
[344550779,1733542232398,-259.00995019,7.688e-05,2]
[344550780,1733542232407,-345.34660025,7.689e-05,2]
[344550781,1733542232416,-200.0,7.689e-05,2]
[344550782,1733542232425,-200.0,7.689e-05,2]
[344550783,1733542232435,-200.0,7.689e-05,2]
[344550784,1733542232444,-200.0,7.689e-05,2]
[344550785,1733542232452,-345.34660025,7.689e-05,2]
[344550786,1733542232461,-200.0,7.69e-05,2]
[344550787,1733542232471,-460.46213366,7.69e-05,2]
[344550788,1733542232480,-200.0,7.69e-05,2]
[344550789,1733542232489,-613.94951155,7.69e-05,2]
[344550791,1733542232499,-259.00995019,7.691e-05,2]
[344550793,1733542232508,-4266.11815187,7.691e-05,2]
[344550795,1733542232518,-1799.7685953,7.691e-05,2]
[344550796,1733542232528,-818.59934874,7.691e-05,2]
[344550798,1733542232538,-200.0,7.691e-05,2]
[344550800,1733542232548,-259.00995019,7.691e-05,2]
[344550802,1733542232558,-2399.6914604,7.691e-05,2]
[344550804,1733542232569,-200.0,7.692e-05,2]
[344550806,1733542232578,-3199.588614,7.692e-05,2]
[344550808,1733542232588,-1799.7685953,7.693e-05,2]
[344550810,1733542232598,-200.0,7.693e-05,2]
[344550812,1733542232607,-200.0,7.693e-05,2]
[344550814,1733542232616,-200.0,7.693e-05,2]
[344550816,1733542232626,-1349.82644648,7.693e-05,2]
[344550818,1733542232635,-2399.6914604,7.694e-05,2]
[344550820,1733542232644,-259.00995019,7.694e-05,2]
[344550822,1733542232654,-1349.82644648,7.695e-05,2]
[344550824,1733542232663,-200.0,7.695e-05,2]
[344550825,1733542232672,-200.0,7.695e-05,2]
[344550827,1733542232682,-661.5688478,7.695e-05,2]
[344550833,1733542232729,-534.299651,7.695e-05,2]
[344551204,1733542238406,-603.9000965,7.695e-05,2]
[344551205,1733542238416,-2312.59758276,7.696e-05,2]
[344551206,1733542238454,-654.06454835,7.696e-05,2]
[344551207,1733542238465,-1299.45602076,7.696e-05,2]
[344551208,1733542238475,-345.34660025,7.696e-05,2]
[344551209,1733542238486,-1799.7685953,7.696e-05,2]
[344551210,1733542238496,-613.94951155,7.696e-05,2]
[344551211,1733542238506,-200.0,7.696e-05,2]
[344551212,1733542238515,-1414.34525137,7.696e-05,2]
[344551213,1733542239759,-644.70220204,7.696e-05,2]
[344551220,1733542239986,-995.8912215,7.696e-05,2]
[344551221,1733542240002,-1211.17947696,7.696e-05,2]
[344551222,1733542240011,-4266.11815187,7.696e-05,2]
[344551223,1733542240021,-259.00995019,7.697e-05,2]
[344551224,1733542240033,-200.0,7.697e-05,2]
[344551225,1733542240043,-1799.7685953,7.697e-05,2]
[344551226,1733542240053,-200.0,7.697e-05,2]
[344551227,1733542240063,-3199.588614,7.698e-05,2]
[344551228,1733542240075,-345.34660025,7.698e-05,2]
[344551229,1733542240085,-200.0,7.699e-05,2]
[344551230,1733542240096,-818.59934874,7.699e-05,2]
[344551231,1733542240106,-200.0,7.699e-05,2]
[344551232,1733542240116,-1349.82644648,7.699e-05,2]
[344551233,1733542240126,-200.0,7.699e-05,2]
[344551234,1733542240136,-2399.6914604,7.7e-05,2]
[344551235,1733542240146,-2151.24,8.598e-05,2]
[344551236,1733542240155,-300.0,9.404e-05,2]
[344551237,1733542240165,-342.77117435,9.404e-05,2]
[344551238,1733542240175,-23900.0,9.405e-05,2]
[344551239,1733542240186,-150.0,9.445e-05,2]
[344551240,1733542240196,-450.86,9.448e-05,2]
[344551241,1733542240206,-171.18,9.498e-05,2]
[344551242,1733542240215,-250.11,9.536e-05,2]
[344551243,1733542240224,-495.84,9.572e-05,2]
[344551244,1733542240234,-250.0,9.653e-05,2]
[344551245,1733542240243,-284.61,9.661e-05,2]
[344551246,1733542240253,-823.57,9.664e-05,2]
[344551247,1733542240262,-400.0,9.854e-05,2]
[344551248,1733542240272,-166.99,9.905e-05,2]
[344551249,1733542240282,-321.0563455,9.979e-05,2]
[344551250,1733542240292,-9932.57276565,9.98e-05,2]
[344551251,1733542240302,-250.0,0.00010062,2]
[344551252,1733542240312,-250.0,0.0001008,2]
[344551253,1733542240321,-200.0,0.00010089,2]
[344551254,1733542240338,-837.0,0.00010135,2]
[344551255,1733542240348,-781.27779267,0.00010136,2]
[344551256,1733542240358,-153.81,0.00010155,2]
[344551257,1733542240368,-150.0,0.0001018,2]
[344551258,1733542240377,-895.2741,0.00010181,2]
[344551259,1733542240387,-9352.29,0.00010181,2]
[344551260,1733542240396,-8655.61,0.00010181,2]
[344551261,1733542240406,-4074.22,0.00010181,2]
[344551262,1733542240415,-1106.85,0.00010181,2]
[344551263,1733542240425,-299.99,0.00010181,2]
[344551264,1733542240434,-2999.99,0.00010181,2]
[344551265,1733542240444,-999.99,0.00010181,2]
[344551266,1733542240454,-326.66,0.00010181,2]
[344551267,1733542240464,-9999.99,0.00010181,2]
[344551268,1733542240473,-1248.26,0.00010181,2]
[344551269,1733542240483,-2781.60164564,0.00010181,2]
[344551270,1733542240521,-979.76979083,0.00010181,2]
[344551271,1733542240550,-498.94845,0.00010181,2]
[344551272,1733542240561,-4692.7587,0.00010181,2]
[344551273,1733542240574,-1046.91141353,0.00010181,2]
[344551274,1733542240583,-499.99,0.00010181,2]
[344551275,1733542240593,-150.99,0.00010181,2]
[344551276,1733542240602,-1343.95,0.00010181,2]
[344551277,1733542240612,-391.24,0.00010181,2]
[344551278,1733542240621,-6520.92,0.00010181,2]
[344551279,1733542240632,-150.99,0.00010181,2]
[344551280,1733542240641,-400.0,0.00010218,2]
[344551281,1733542240651,-21716.0,0.00010237,2]
[344551282,1733542240660,-10856.0,0.00010237,2]
[344551283,1733542240669,-10856.0,0.00010237,2]
[344551284,1733542240678,-10856.0,0.00010237,2]
[344551285,1733542240688,-10856.0,0.00010237,2]
[344551286,1733542240697,-420.0,0.00010345,2]
[344551287,1733542240706,-220.59,0.00010416,2]
[344551288,1733542240715,-1000.0,0.00010417,2]
[344551289,1733542240725,-150.0,0.00010446,2]
[344551290,1733542240734,-400.0,0.00010583,2]
[344551291,1733542240747,-255.68451424,0.000107,2]
[344551292,1733542240757,-495.84,0.00010768,2]
[344551293,1733542240767,-979.33237313,0.000108,2]
[344551294,1733542240776,-500.0,0.00010849,2]
[344551295,1733542240785,-2151.24,0.00010862,2]
[344551296,1733542240796,-153.81,0.00010907,2]
[344551297,1733542240805,-400.0,0.00010948,2]
[344551298,1733542240814,-500.0,0.00010949,2]
[344551299,1733542240823,-500.0,0.00010949,2]
[344551300,1733542240833,-500.0,0.00010949,2]
[344551301,1733542240842,-500.0,0.00010949,2]
[344551302,1733542240852,-559.72,0.00010949,2]
[344551303,1733542240864,-500.0,0.00010949,2]
[344551304,1733542240874,-500.0,0.00010949,2]
[344551305,1733542240884,-500.0,0.00010949,2]
[344551306,1733542240894,-500.0,0.00010949,2]
[344551307,1733542240903,-500.0,0.00010949,2]
[344551308,1733542240912,-500.0,0.00010949,2]
[344551309,1733542240922,-500.0,0.00010949,2]
[344551310,1733542240931,-500.0,0.00010949,2]
[344551311,1733542240940,-514.34,0.00010949,2]
[344551312,1733542240949,-500.0,0.00010949,2]
[344551313,1733542240959,-500.0,0.00010949,2]
[344551314,1733542240968,-500.0,0.00010949,2]
[344551315,1733542240977,-500.0,0.00010949,2]
[344551316,1733542240986,-500.0,0.00010949,2]
[344551317,1733542240999,-500.0,0.00010949,2]
[344551318,1733542241009,-500.0,0.00010949,2]
[344551319,1733542241018,-500.0,0.00010949,2]
[344551320,1733542241027,-528.89791205,0.00010949,2]
[344551321,1733542241038,-553.68,0.00010949,2]
[344551322,1733542241048,-500.0,0.00010949,2]
[344551323,1733542241057,-500.0,0.00010949,2]
[344551324,1733542241069,-500.0,0.00010949,2]
[344551325,1733542241080,-500.0,0.00010949,2]
[344551326,1733542241091,-500.0,0.00010949,2]
[344551327,1733542241100,-500.0,0.00010949,2]
[344551328,1733542241111,-500.0,0.00010949,2]
[344551329,1733542241121,-500.0,0.00010949,2]
[344551330,1733542241130,-500.0,0.00010949,2]
[344551331,1733542241139,-500.0,0.00010949,2]
[344551332,1733542241149,-617.62,0.00010949,2]
[344551333,1733542241157,-500.0,0.00010949,2]
[344551334,1733542241166,-500.0,0.00010949,2]
[344551335,1733542241176,-614.5,0.00010949,2]
[344551336,1733542241185,-500.0,0.00010949,2]
[344551337,1733542241194,-150.0,0.00010959,2]
[344551338,1733542241205,-5612.1,0.00010959,2]
[344551339,1733542241215,-255.0,0.00010959,2]
[344551340,1733542241224,-5964.0,0.00010984,2]
[344551341,1733542241234,-567.0,0.00010984,2]
[344551342,1733542241243,-150.0,0.00010984,2]
[344551343,1733542241252,-1262.0,0.00010984,2]
[344551344,1733542241264,-1167.0,0.00010984,2]
[344551345,1733542241273,-1119.38828705,0.00010984,2]
[344551359,1733542243146,-4767.94471559,0.00010984,2]
[344551360,1733542243157,-7828.66699736,0.00010984,2]
[344551361,1733542243167,-634.0,0.00010984,2]
[344551362,1733542243176,-2500.0,0.00011022,2]
[344551363,1733542243186,-200.0,0.0001103,2]
[344551364,1733542243195,-321.05634541,0.00011081,2]
[344551365,1733542243204,-255.0,0.00011187,2]
[344551366,1733542243213,-242.57,0.00011223,2]
[344551367,1733542243223,-500.0,0.00011223,2]
[344551368,1733542243232,-162.41,0.00011223,2]
[344551369,1733542243241,-535.81,0.00011223,2]
[344551370,1733542243251,-346.08,0.00011223,2]
[344551371,1733542243260,-166.76,0.00011241,2]
[344551372,1733542243269,-400.0,0.00011312,2]
[344551373,1733542243278,-354.33923528,0.00011373,2]
[344551374,1733542243287,-501.63291091,0.00011373,2]
[344551375,1733542243297,-500.0,0.00011373,2]
[344551376,1733542243307,-500.0,0.00011394,2]
[344551377,1733542243316,-500.0,0.00011394,2]
[344551378,1733542243326,-500.0,0.00011394,2]
[344551379,1733542243335,-500.0,0.00011394,2]
[344551380,1733542243345,-500.0,0.00011394,2]
[344551381,1733542243354,-500.0,0.00011394,2]
[344551382,1733542243363,-500.0,0.00011394,2]
[344551383,1733542243372,-500.0,0.00011394,2]
[344551384,1733542243381,-500.0,0.00011394,2]
[344551385,1733542243391,-500.0,0.00011394,2]
[344551386,1733542243401,-500.0,0.00011394,2]
[344551387,1733542243410,-952.9,0.00011395,2]
[344551388,1733542243419,-527.25,0.00011395,2]
[344551389,1733542243428,-189.308543,0.00011395,2]
[344551390,1733542243438,-500.0,0.00011395,2]
[344551391,1733542243447,-2238.2,0.00011395,2]
[344551392,1733542243456,-500.0,0.00011395,2]
[344551393,1733542243466,-799.6,0.00011395,2]
[344551394,1733542243475,-500.0,0.00011395,2]
[344551395,1733542243484,-975.2,0.00011395,2]
[344551396,1733542243493,-500.0,0.00011395,2]
[344551397,1733542243503,-500.0,0.00011395,2]
[344551398,1733542243512,-507.82,0.00011395,2]
[344551399,1733542243521,-823.68,0.00011395,2]
[344551400,1733542243530,-500.0,0.00011395,2]
[344551401,1733542243539,-1530.56,0.00011395,2]
[344551403,1733542243548,-2551.88,0.00011395,2]
[344551405,1733542243558,-500.0,0.00011395,2]
[344551407,1733542243566,-793.51,0.00011395,2]
[344551409,1733542243576,-500.0,0.00011395,2]
[344551411,1733542243586,-500.0,0.00011395,2]
[344551413,1733542243595,-885.01,0.00011395,2]
[344551415,1733542243605,-2966.37,0.00011395,2]
[344551417,1733542243614,-5655.0,0.00011395,2]
[344551419,1733542243623,-500.0,0.00011395,2]
[344551421,1733542243632,-537.67,0.00011395,2]
[344551423,1733542243641,-765.09,0.00011395,2]
[344551425,1733542243651,-500.0,0.00011395,2]
[344551427,1733542243660,-560.09,0.00011395,2]
[344551429,1733542243669,-939.11,0.00011395,2]
[344551431,1733542243678,-500.0,0.00011395,2]
[344551433,1733542243687,-5212.83,0.00011395,2]
[344551435,1733542243696,-1623.84,0.00011395,2]
[344551437,1733542243705,-1610.07,0.00011395,2]
[344551439,1733542243714,-500.0,0.00011395,2]
[344551441,1733542243723,-500.0,0.00011395,2]
[344551443,1733542243732,-500.0,0.00011395,2]
[344551445,1733542243741,-649.27,0.00011395,2]
[344551447,1733542243751,-762.7,0.00011395,2]
[344551449,1733542243760,-556.11,0.00011395,2]
[344551452,1733542243769,-521.78,0.00011395,2]
[344551453,1733542243778,-1429.28,0.00011395,2]
[344551456,1733542243787,-4106.05,0.00011395,2]
[344551458,1733542243796,-500.0,0.00011395,2]
[344551460,1733542243805,-500.0,0.00011395,2]
[344551462,1733542243814,-500.0,0.00011395,2]
[344551464,1733542243824,-500.0,0.00011395,2]
[344551466,1733542243836,-500.0,0.00011395,2]
[344551469,1733542243846,-500.0,0.00011395,2]
[344551470,1733542243856,-741.8,0.00011395,2]
[344551473,1733542243867,-2325.13,0.00011395,2]
[344551475,1733542243876,-500.0,0.00011395,2]
[344551477,1733542243887,-500.0,0.00011395,2]
[344551479,1733542243897,-500.0,0.00011395,2]
[344551481,1733542243906,-500.0,0.00011395,2]
[344551483,1733542243915,-2996.47,0.00011395,2]
[344551485,1733542243925,-566.14,0.00011395,2]
[344551487,1733542243934,-500.0,0.00011395,2]
[344551489,1733542243944,-500.0,0.00011395,2]
[344551491,1733542243953,-500.0,0.00011395,2]
[344551493,1733542243962,-500.0,0.00011395,2]
[344551495,1733542243971,-1338.89,0.00011395,2]
[344551497,1733542243980,-665.94,0.00011395,2]
[344551499,1733542243990,-4967.05,0.00011395,2]
[344551501,1733542244001,-977.62,0.00011395,2]
[344551503,1733542244011,-500.0,0.00011396,2]
[344551505,1733542244020,-500.0,0.00011396,2]
[344551507,1733542244030,-500.0,0.00011396,2]
[344551509,1733542244040,-500.0,0.00011396,2]
[344551511,1733542244049,-500.0,0.00011396,2]
[344551513,1733542244059,-501.06422827,0.00011396,2]
[344551515,1733542244070,-500.0,0.00011396,2]
[344551517,1733542244080,-618.41,0.00011396,2]
[344551519,1733542244090,-500.0,0.00011396,2]
[344551521,1733542244099,-537.38,0.00011396,2]
[344551523,1733542244108,-500.0,0.00011396,2]
[344551525,1733542244117,-500.0,0.00011396,2]
[344551527,1733542244127,-603.18,0.00011396,2]
[344551529,1733542244136,-607.67,0.00011396,2]
[344551546,1733542244373,-500.0,0.00011396,2]
[344551547,1733542244387,-500.0,0.00011396,2]
[344551548,1733542244396,-500.0,0.00011396,2]
[344551549,1733542244405,-500.0,0.00011396,2]
[344551550,1733542244414,-500.0,0.00011396,2]
[344551551,1733542244424,-500.0,0.00011396,2]
[344551552,1733542244433,-500.0,0.00011396,2]
[344551553,1733542244442,-500.0,0.00011396,2]
[344551554,1733542244451,-500.0,0.00011396,2]
[344551555,1733542244460,-500.0,0.00011396,2]
[344551556,1733542244469,-500.0,0.00011396,2]
[344551557,1733542244479,-500.0,0.00011396,2]
[344551558,1733542244488,-500.0,0.00011396,2]
[344551559,1733542244498,-500.0,0.00011396,2]
[344551560,1733542244507,-500.0,0.00011396,2]
[344551561,1733542244517,-500.0,0.00011396,2]
[344551562,1733542244526,-500.0,0.00011396,2]
[344551563,1733542244535,-500.0,0.00011396,2]
[344551564,1733542244545,-500.0,0.00011396,2]
[344551565,1733542244554,-500.0,0.00011396,2]
[344551566,1733542244563,-500.0,0.00011396,2]
[344551567,1733542244572,-500.0,0.00011396,2]
[344551568,1733542244583,-500.0,0.00011396,2]
[344551569,1733542244592,-500.0,0.00011396,2]
[344551570,1733542244602,-500.0,0.00011396,2]
[344551571,1733542244611,-500.0,0.00011396,2]
[344551572,1733542244620,-500.0,0.00011396,2]
[344551573,1733542244630,-500.0,0.00011396,2]
[344551574,1733542244639,-500.0,0.00011396,2]
[344551575,1733542244648,-500.0,0.00011396,2]
[344551576,1733542244658,-500.0,0.00011396,2]
[344551577,1733542244667,-500.0,0.00011396,2]
[344551578,1733542244677,-500.0,0.00011396,2]
[344551579,1733542244687,-500.0,0.00011396,2]
[344551580,1733542244696,-500.0,0.00011396,2]
[344551581,1733542244706,-567.73,0.00011396,2]
[344551582,1733542244715,-500.0,0.00011396,2]
[344551583,1733542244724,-500.0,0.00011396,2]
[344551584,1733542244733,-1764.63,0.00011396,2]
[344551585,1733542244743,-500.0,0.00011396,2]
[344551586,1733542244752,-500.0,0.00011396,2]
[344551587,1733542244761,-500.0,0.00011396,2]
[344551588,1733542244770,-570.93,0.00011396,2]
[344551589,1733542244779,-500.0,0.00011396,2]
[344551590,1733542244788,-576.01,0.00011396,2]
[344551591,1733542244797,-500.0,0.00011396,2]
[344551592,1733542244806,-500.0,0.00011396,2]
[344551593,1733542244816,-550.07,0.00011396,2]
[344551594,1733542244825,-522.22,0.00011396,2]
[344551595,1733542244838,-500.0,0.00011396,2]
[344551596,1733542244848,-500.0,0.00011396,2]
[344551597,1733542244858,-631.36,0.00011396,2]
[344551598,1733542244867,-500.0,0.00011396,2]
[344551599,1733542244876,-500.0,0.00011396,2]
[344551600,1733542244888,-500.0,0.00011396,2]
[344551601,1733542244898,-500.0,0.00011396,2]
[344551602,1733542244907,-500.0,0.00011396,2]
[344551603,1733542244916,-500.66585979,0.00011396,2]
[344551604,1733542244925,-500.0,0.00011396,2]
[344551605,1733542244935,-369.81466169,0.00011396,2]
[344551606,1733542244945,-500.0,0.00011396,2]
[344551607,1733542244954,-500.0,0.00011396,2]
[344551608,1733542244963,-500.0,0.00011396,2]
[344551609,1733542244971,-500.0,0.00011396,2]
[344551610,1733542244981,-732.91,0.00011396,2]
[344551611,1733542244992,-2130.76,0.00011396,2]
[344551612,1733542245002,-500.0,0.00011396,2]
[344551613,1733542245012,-940.25,0.00011396,2]
[344551614,1733542245021,-500.0,0.00011396,2]
[344551615,1733542245031,-466.17172391,0.00011396,2]
[344551616,1733542245041,-500.0,0.00011396,2]
[344551617,1733542245052,-533.48,0.00011396,2]
[344551618,1733542245062,-500.0,0.00011396,2]
[344551619,1733542245074,-500.0,0.00011396,2]
[344551620,1733542245087,-884.72,0.00011396,2]
[344551621,1733542245098,-500.0,0.00011396,2]
[344551622,1733542245107,-500.0,0.00011396,2]